bitfinex/quotes_ETHUSD_20250626
["timestamp","ask_amount","ask_price","bid_price","bid_amount"]
[1750932147855,191.05526666,2460.0,2459.9,4.8423059]
[1750932148158,191.05526666,2460.0,2459.4,0.2192033]
[1750932148361,191.05526666,2460.0,2459.6,6.826]
[1750932148662,191.05526666,2460.0,2459.4,0.2192033]
[1750932148869,191.05526666,2460.0,2459.9,4.2684059]
[1750932149025,191.05526666,2460.0,2459.9,13.0464059]
[1750932151172,191.05526666,2460.0,2459.9,23.0464059]
[1750932151327,191.05526666,2460.0,2459.9,23.8344059]
[1750932152170,191.05526666,2460.0,2459.9,24.3844059]
[1750932152357,187.15980672,2460.0,2459.9,24.3844059]
[1750932152560,179.10403611,2460.0,2459.9,35.26228183]
[1750932152755,179.10403611,2460.0,2459.9,35.56183587]
[1750932152960,179.10403611,2460.0,2459.9,37.93373587]
[1750932153572,176.52944984,2460.0,2459.9,37.93373587]
[1750932153877,176.08789208,2460.0,2459.9,37.93373587]
[1750932155274,171.60180638,2460.0,2459.9,65.56183587]
[1750932155456,167.03738257,2460.0,2459.9,65.56183587]
[1750932155675,165.56114803,2460.0,2459.9,65.56183587]
[1750932155978,163.32661332,2460.0,2459.9,35.56183587]
[1750932156181,140.60696801,2460.0,2459.9,64.77383587]
[1750932156373,139.27696801,2460.0,2459.9,64.77383587]
[1750932156990,139.27696801,2460.0,2459.9,68.77383587]
[1750932157195,136.99881386,2460.0,2459.9,68.77383587]
[1750932157357,131.98563312,2460.0,2459.9,68.77383587]
[1750932158094,90.38245934,2460.0,2459.9,68.77383587]
[1750932158878,77.47974714,2460.0,2459.9,68.77383587]
[1750932159181,77.31983614,2460.0,2459.9,68.77383587]
[1750932159362,68.96358887,2460.0,2459.9,68.77383587]
[1750932159560,63.91654827,2460.0,2459.9,68.77383587]
[1750932159762,59.85588193,2460.0,2459.9,68.77383587]
[1750932159964,57.82554876,2460.0,2459.9,68.75383587]
[1750932160157,57.82554876,2460.0,2459.9,59.99583587]
[1750932160483,52.82554876,2460.0,2459.9,68.75383587]
[1750932161084,52.82554876,2460.0,2459.9,39.90148294]
[1750932161286,52.82554876,2460.0,2459.9,23.22795994]
[1750932161466,52.82554876,2460.0,2459.9,27.98795994]
[1750932161666,52.82554876,2460.0,2459.9,28.53795994]
[1750932161861,52.82554876,2460.0,2459.9,23.32895994]
[1750932162287,52.82554876,2460.0,2459.9,6.1434059]
[1750932162467,52.82554876,2460.0,2459.9,13.0274059]
[1750932162805,52.82554876,2460.0,2459.9,14.2684059]
[1750932162989,52.82554876,2460.0,2459.9,23.0284059]
[1750932163159,52.82554876,2460.0,2459.9,13.0284059]
[1750932163672,52.82554876,2460.0,2459.9,23.0284059]
[1750932164274,53.64524876,2460.0,2459.9,13.0224059]
[1750932165161,53.64524876,2460.0,2459.9,13.0314059]
[1750932165367,53.64524876,2460.0,2459.9,13.0304059]
[1750932166691,53.64524876,2460.0,2459.9,13.0314059]
[1750932166887,53.64524876,2460.0,2459.9,4.2684059]
[1750932167458,53.64524876,2460.0,2459.9,13.0264059]
[1750932167657,53.64524876,2460.0,2459.9,4.2684059]
[1750932167879,53.64524876,2460.0,2459.9,13.0254059]
[1750932168074,53.64524876,2460.0,2459.9,13.0234059]
[1750932168692,53.64524876,2460.0,2459.9,4.2684059]
[1750932168902,52.82554876,2460.0,2459.9,13.0234059]
[1750932170399,52.82554876,2460.0,2459.9,13.0214059]
[1750932175387,52.82554876,2460.0,2459.9,23.5714059]
[1750932177465,52.82554876,2460.0,2459.9,23.86854777]
[1750932178198,52.82554876,2460.0,2459.9,4.0652059]
[1750932181709,52.82554876,2460.0,2459.9,10.9492059]
[1750932182308,52.82554876,2460.0,2459.9,4.0652059]
[1750932182610,52.82554876,2460.0,2459.9,12.8012059]
[1750932183305,52.82554876,2460.0,2459.9,4.0652059]
[1750932183504,52.82554876,2460.0,2459.9,12.7982059]
[1750932184713,0.7953,2459.9,2459.4,0.2192033]
[1750932184906,0.7953,2459.9,2459.8,4.06537116]
[1750932185106,0.7953,2459.9,2459.8,10.95537116]
[1750932185605,0.7953,2459.9,2459.8,12.80737116]
[1750932186113,52.82554876,2460.0,2459.9,4.0652059]
[1750932188218,52.82554876,2460.0,2459.9,4.2684059]
[1750932188402,52.82554876,2460.0,2459.9,13.0024059]
[1750932191393,52.82554876,2460.0,2459.9,12.9984059]
[1750932191806,53.58544876,2460.0,2459.9,4.0652059]
[1750932192005,53.58544876,2460.0,2459.9,12.7912059]
[1750932192205,53.58544876,2460.0,2459.9,4.0652059]
[1750932192996,53.58544876,2460.0,2459.9,12.7932059]
[1750932193220,53.58544876,2460.0,2459.9,12.7922059]
[1750932196630,53.58544876,2460.0,2459.9,4.0652059]
[1750932197604,53.58544876,2460.0,2459.9,10.9272059]
[1750932198124,0.8196,2459.8,2459.4,0.2192033]
[1750932198328,0.8196,2459.6,2459.5,4.06578126]
[1750932198904,0.8196,2459.6,2459.4,0.2192033]
[1750932199105,6.873,2459.5,2459.4,0.2192033]
[1750932199323,7.6451,2459.5,2459.4,0.2192033]
[1750932200229,0.7721,2459.5,2459.4,0.2192033]
[1750932200424,7.6431,2459.5,2459.4,0.2192033]
[1750932200618,7.6411,2459.5,2459.4,4.28523566]
[1750932200817,7.6411,2459.5,2459.4,0.2192033]
[1750932201126,7.6411,2459.5,2459.4,4.28523566]
[1750932201329,7.6411,2459.5,2459.4,0.2192033]
[1750932201626,7.6401,2459.5,2459.4,0.2192033]
[1750932201827,7.6401,2459.5,2459.4,4.28523566]
[1750932202428,0.7721,2459.5,2459.4,4.28523566]
[1750932202605,7.6371,2459.5,2459.4,4.28523566]
[1750932202921,0.7721,2459.5,2459.4,4.28523566]
[1750932203225,0.7721,2459.5,2459.4,4.48843566]
[1750932204899,0.8261,2459.3,2458.0,0.32545942]
[1750932205101,0.55,2458.3,2457.2,0.04069]
[1750932205356,0.7607,2457.5,2457.4,4.0]
[1750932205502,0.2032,2458.0,2457.4,4.0]
[1750932205702,0.7607,2457.9,2457.4,0.2032]
[1750932205903,0.7607,2457.9,2457.6,4.06897875]
[1750932206205,0.7607,2457.9,2457.6,4.06901032]
[1750932206509,7.8427,2457.9,2457.5,0.2032]
[1750932207042,0.55,2457.4,2455.9,0.5859]
[1750932207246,7.93560868,2458.0,2454.8,0.40710214]
[1750932207542,5.0637,2456.1,2454.5,4.07402326]
[1750932207742,0.7927,2456.1,2456.0,4.07166123]
[1750932207959,0.7927,2457.0,2456.0,2.208]
[1750932208129,10.7927,2456.6,2455.3,9.755]
[1750932208452,0.7927,2456.0,2455.4,0.33997825]
[1750932208653,0.7927,2456.0,2454.4,0.2708613]
[1750932208952,18.79851751,2454.5,2454.4,0.2708613]
[1750932209152,10.0,2454.4,2453.4,4.07594965]
[1750932209452,0.7927,2453.8,2452.1,9.755]
[1750932209653,10.0,2453.6,2452.7,4.07713947]
[1750932209854,10.0,2453.6,2453.0,4.0764988]
[1750932210151,8.00581751,2454.0,2452.1,12.051]
[1750932210152,0.7927,2454.3,2452.8,0.7803]
[1750932210351,0.7927,2454.3,2454.2,4.07464754]
[1750932210552,0.7927,2454.8,2454.2,2.297]
[1750932210742,0.7927,2454.8,2454.7,4.07381757]
[1750932211117,0.7927,2454.8,2454.5,4.07399197]
[1750932211118,0.27516117,2454.8,2453.8,10.0]
[1750932211324,8.79851751,2455.6,2454.7,4.07381757]
[1750932211542,0.7927,2455.6,2454.9,4.07347902]
[1750932211754,1.06786117,2455.6,2454.9,2.39]
[1750932211960,1.06786117,2455.6,2454.9,4.07335682]
[1750932212156,0.7927,2455.6,2453.9,4.07514568]
[1750932212358,8.00581751,2455.5,2453.9,10.0]
[1750932212536,10.0,2455.4,2454.1,4.07481357]
[1750932212737,10.0,2455.4,2454.2,4.07461415]
[1750932212940,0.8456,2454.3,2453.4,2.39]
[1750932213253,0.8456,2454.3,2453.5,4.07581006]
[1750932213453,0.8456,2454.3,2454.0,4.07485137]
[1750932213669,0.8456,2454.3,2454.1,4.07476599]
[1750932213884,0.8456,2454.3,2454.2,4.07464754]
[1750932214169,0.8456,2454.3,2454.1,2.391]
[1750932214170,0.8085,2454.8,2454.3,4.0743734]
[1750932214346,10.0,2454.4,2453.0,2.391]
[1750932214560,1.80058175,2454.3,2453.1,4.07647466]
[1750932214753,1.80058175,2454.3,2453.9,4.0750264]
[1750932215057,1.80058175,2454.3,2453.8,4.07531176]
[1750932215221,10.8085,2454.8,2454.0,4.07494515]
[1750932215439,18.5635,2454.8,2453.7,2.391]
[1750932215644,0.8085,2454.8,2453.7,2.391]
[1750932216045,10.0,2454.5,2452.9,0.8114]
[1750932216291,10.0,2454.5,2453.0,12.391]
[1750932216584,2.07574292,2454.4,2453.1,2.391]
[1750932216786,0.27517929,2454.3,2453.9,4.07500986]
[1750932216942,0.27517929,2454.3,2453.8,4.07526324]
[1750932217149,0.2032,2454.1,2453.8,4.07525441]
[1750932217466,0.47839723,2454.1,2453.9,4.07502239]
[1750932217784,0.47839723,2454.1,2454.0,4.07497962]
[1750932217988,0.27519723,2454.1,2454.0,4.07497962]
[1750932218357,0.2032,2454.3,2454.2,4.07464754]
[1750932218672,0.2032,2454.3,2454.1,4.07480081]
[1750932219478,0.55,2454.7,2454.1,4.07480081]
[1750932219783,0.2032,2454.1,2453.7,2.391]
[1750932219991,10.55,2454.0,2452.5,4.07740704]
[1750932220284,0.8085,2453.9,2453.7,4.075312]
[1750932220578,8.00581751,2454.8,2453.6,2.392]
[1750932220785,0.8085,2455.0,2454.9,4.07348568]
[1750932220993,0.8085,2455.0,2454.4,2.392]
[1750932221142,0.8085,2455.0,2454.5,4.0741344]
[1750932221453,0.8085,2455.0,2454.4,4.07423153]
[1750932221657,0.8085,2455.0,2454.0,2.392]
[1750932222000,0.8085,2455.0,2454.6,4.07389092]
[1750932222176,0.8085,2455.0,2454.0,2.392]
[1750932222492,1.72086944,2455.0,2454.6,4.07390973]
[1750932222698,0.55,2454.9,2454.7,4.073816]
[1750932223001,0.8085,2455.0,2454.9,4.07348568]
[1750932223377,0.8085,2455.0,2454.8,4.07357903]
[1750932223576,0.8085,2455.0,2454.9,4.07348568]
[1750932224079,0.8085,2455.0,2454.9,4.05229067]
[1750932224279,0.7906,2455.5,2455.4,4.07265618]
[1750932225109,11.11016532,2455.9,2455.1,4.07301897]
[1750932225405,8.79641751,2456.0,2455.8,4.07188887]
[1750932225406,0.7906,2456.0,2455.8,4.07188887]
[1750932225573,0.7906,2456.0,2455.9,4.07182702]
[1750932225773,0.8148,2456.7,2455.9,4.07182702]
[1750932225978,8.5448,2456.7,2456.1,4.07140507]
[1750932226172,1.65506175,2456.6,2455.5,4.07249032]
[1750932226383,1.65506175,2456.6,2456.1,4.07146071]
[1750932226718,1.65506175,2456.6,2456.2,4.07124363]
[1750932226990,1.65506175,2456.6,2456.0,4.07155176]
[1750932227194,1.65506175,2456.6,2456.1,4.07148687]
[1750932227392,11.01898618,2456.5,2455.5,4.07249032]
[1750932227797,11.01898618,2456.5,2455.9,4.07169289]
[1750932227960,10.55,2456.3,2455.2,2.392]
[1750932228168,0.55,2456.1,2455.2,2.392]
[1750932228366,0.55,2456.1,2455.6,4.07221043]
[1750932228608,1.13648,2456.1,2455.7,4.07208499]
[1750932228765,1.13648,2456.1,2455.8,4.07199276]
[1750932229075,8.00581751,2456.0,2455.4,4.07263436]
[1750932229276,8.00581751,2456.0,2455.5,4.07247207]
[1750932229969,0.2032,2455.7,2455.5,4.07247207]
[1750932230169,0.2032,2455.7,2455.2,2.5952]
[1750932230170,0.2032,2455.7,2455.4,4.07260331]
[1750932230418,0.2032,2455.7,2455.4,4.07250154]
[1750932230607,0.2032,2455.7,2455.3,4.07282205]
[1750932230608,0.2032,2455.7,2455.6,4.07232448]
[1750932231119,0.2032,2456.0,2455.7,4.07215179]
[1750932231414,8.82061751,2456.2,2455.2,2.392]
[1750932231708,1.08148,2456.1,2455.8,4.07194159]
[1750932232012,1.28468,2456.1,2455.7,0.2032]
[1750932232187,1.28468,2456.1,2455.8,4.071914]
[1750932232393,0.8148,2456.2,2455.8,4.07190674]
[1750932232587,0.55,2456.1,2455.4,4.07253495]
[1750932232790,0.2032,2455.7,2455.5,4.07240606]
[1750932233012,0.2032,2455.7,2455.6,4.07232448]
[1750932233418,0.2032,2455.7,2455.5,4.07247826]
[1750932233716,0.8148,2456.2,2456.0,4.0716233]
[1750932233917,1.018,2456.2,2456.0,4.07155043]
[1750932234146,11.98265457,2456.2,2455.9,4.07174972]
[1750932234439,11.98265457,2456.2,2455.8,4.07188381]
[1750932234440,1.98265457,2456.2,2455.8,4.07188381]
[1750932234609,0.94962764,2456.1,2455.9,4.07172632]
[1750932234809,1.98265457,2456.2,2456.0,4.07164602]
[1750932235010,0.94966369,2456.1,2456.0,4.07164602]
[1750932235326,0.94966369,2456.1,2455.9,4.07174637]
[1750932235636,0.95081618,2456.0,2455.9,4.07173957]
[1750932237139,0.95081618,2456.0,2455.2,6.46494066]
[1750932237140,1.24416326,2456.0,2455.2,6.46494066]
[1750932237436,0.95081618,2455.9,2455.6,4.07231091]
[1750932237640,0.95081618,2455.8,2455.7,4.07215865]
[1750932237804,8.67398618,2456.5,2455.7,4.07215865]
[1750932237805,0.825,2457.3,2455.8,4.07199283]
[1750932238007,9.35190061,2457.2,2456.4,4.07090558]
[1750932238206,10.95265341,2457.1,2455.7,0.8334]
[1750932238406,0.95265341,2457.0,2456.4,4.07092045]
[1750932238622,0.95265341,2456.9,2456.4,4.07092045]
[1750932238858,0.95265341,2456.8,2456.5,4.07080474]
[1750932239144,0.95265341,2457.1,2457.0,4.07000407]
[1750932239340,0.825,2457.3,2457.2,4.06967279]
[1750932239941,0.95267452,2457.5,2457.4,4.06934158]
[1750932240148,0.95267452,2457.5,2457.1,4.0697131]
[1750932240334,0.95267452,2457.4,2457.1,4.06975089]
[1750932240643,1.09526745,2457.4,2457.1,4.06975089]
[1750932240942,2.04794197,2457.4,2457.2,4.06965578]
[1750932241121,0.95267452,2457.6,2457.2,4.06959636]
[1750932241442,8.77411751,2457.7,2457.2,4.06959636]
[1750932241443,0.95267452,2457.5,2457.2,4.06962667]
[1750932241648,10.95117354,2457.6,2457.2,4.06962667]
[1750932241807,0.95117354,2457.5,2456.9,4.07002484]
[1750932242009,0.55,2457.2,2456.2,0.8459]
[1750932242209,0.8129,2457.0,2456.7,4.07050107]
[1750932243021,0.8129,2457.0,2456.7,4.07040183]
[1750932243326,0.8129,2457.0,2456.4,7.655]
[1750932243716,0.8129,2457.0,2456.5,4.07067446]
[1750932243916,0.8129,2457.0,2456.0,13.84052618]
[1750932244111,0.8129,2457.0,2454.0,0.8718014]
[1750932244112,10.0,2456.6,2455.4,4.07265618]
[1750932244418,10.95117354,2456.6,2456.1,4.07139356]
[1750932244618,10.95117354,2456.6,2456.2,4.07132274]
[1750932244946,0.95117354,2456.6,2455.5,4.07249032]
[1750932245250,0.95109052,2456.7,2456.2,4.07130052]
[1750932245446,0.95109052,2456.8,2456.4,4.07089768]
[1750932245650,0.95109052,2456.7,2456.5,4.0708099]
[1750932245846,0.95109052,2456.6,2456.5,4.0708099]
[1750932246046,0.95109052,2456.6,2455.4,4.07265618]
[1750932246229,1.90178132,2456.5,2456.2,4.07132398]
[1750932246427,0.9506908,2456.5,2456.1,4.07141051]
[1750932246631,0.95109052,2456.4,2456.1,4.07141051]
[1750932246828,1.3977,2456.3,2455.0,4.07322527]
[1750932247033,0.95249735,2456.2,2455.9,4.07173962]
[1750932247349,1.03560149,2456.1,2456.0,4.07166123]
[1750932247515,0.8477,2456.3,2456.2,4.07132969]
[1750932247921,0.2032,2456.4,2456.3,4.07116394]
[1750932248150,1.1563098,2456.4,2456.3,4.07116394]
[1750932248348,0.2032,2456.4,2456.3,4.07116394]
[1750932248548,7.81,2457.3,2456.7,4.07050107]
[1750932248549,0.95319473,2456.8,2456.7,4.07050107]
[1750932248737,1.15639473,2456.8,2456.7,4.07050107]
[1750932249519,1.15756229,2456.8,2456.7,4.07050107]
[1750932249720,0.7851,2457.3,2456.9,4.07016972]
[1750932249918,0.7851,2457.3,2456.6,0.2032]
[1750932249919,0.2032,2457.1,2456.6,0.2032]
[1750932250156,0.95444362,2457.0,2456.6,0.2032]
[1750932250338,0.2032,2457.1,2456.9,4.07004388]
[1750932250651,0.95563561,2457.0,2456.9,4.07004388]
[1750932251153,0.2032,2457.2,2457.1,4.06983842]
[1750932251354,1.15879285,2457.2,2457.1,4.06983842]
[1750932251556,1.15879285,2457.2,2456.7,0.2032]
[1750932251722,0.95559285,2457.1,2456.9,4.07015682]
[1750932251922,0.95559285,2457.0,2456.8,4.07025193]
[1750932252122,0.2032,2457.1,2456.8,4.07025193]
[1750932252349,0.2032,2457.1,2456.9,4.07016972]
[1750932252350,0.95579173,2457.0,2456.9,4.07016972]
[1750932252547,0.2032,2457.1,2457.0,4.07000407]
[1750932252748,1.15931461,2457.1,2457.0,4.07000407]
[1750932252944,1.15931461,2457.1,2456.6,0.2032]
[1750932253160,0.95611461,2457.0,2456.8,4.07032268]
[1750932253471,0.2032,2456.9,2456.8,4.07032268]
[1750932255246,0.2032,2456.9,2456.7,4.07042104]
[1750932255551,0.2032,2456.9,2456.3,4.07114205]
[1750932255552,0.2032,2456.7,2456.2,0.2032]
[1750932255862,10.8408,2457.1,2457.0,4.07000407]
[1750932256065,0.2032,2456.9,2456.6,4.07066677]
[1750932256364,0.2032,2456.9,2456.8,4.07033539]
[1750932257329,0.95689629,2457.4,2456.8,4.07033539]
[1750932257547,0.95689629,2457.3,2457.2,4.06966396]
[1750932257743,0.2032,2457.2,2456.6,0.2032]
[1750932257976,0.2032,2457.2,2457.1,4.06983842]
[1750932259971,0.8089,2457.5,2457.4,4.06934158]
[1750932260273,0.8483,2457.4,2456.3,0.8164]
[1750932260452,1.8050422,2457.7,2456.4,7.553]
[1750932260652,0.9567422,2457.6,2457.0,4.06991801]
[1750932260857,0.9567422,2457.6,2456.9,7.571]
[1750932261184,0.9567422,2457.6,2457.2,4.06951632]
[1750932261484,0.9567422,2457.6,2457.1,4.06982202]
[1750932261485,0.8483,2457.7,2457.4,4.06932718]
[1750932261991,1.8050422,2457.7,2457.4,4.06932718]
[1750932262187,8.55581751,2458.1,2457.0,4.07000374]
[1750932262188,0.9567422,2457.9,2457.1,0.8345]
[1750932262365,0.9567422,2457.8,2457.3,4.06950718]
[1750932262568,0.55,2457.9,2457.2,4.06966719]
[1750932262781,0.9567422,2457.8,2457.3,4.06950029]
[1750932263177,8.85411751,2457.6,2456.4,0.8345]
[1750932263377,11.54744568,2457.6,2457.2,4.06958185]
[1750932263582,2.58488597,2457.6,2456.5,4.07083248]
[1750932263792,0.8483,2457.6,2457.5,4.06917599]
[1750932264665,0.8483,2457.6,2457.3,4.06944044]
[1750932264866,0.8483,2457.6,2457.4,4.06933197]
[1750932266698,0.95781847,2457.9,2457.7,4.06884485]
[1750932266896,0.8035,2458.7,2457.9,4.06851377]
[1750932267267,0.8035,2458.7,2458.6,4.0673554]
[1750932268407,0.8334,2459.0,2458.8,4.06699361]
[1750932268586,0.8321,2459.0,2458.9,4.06685916]
[1750932268763,0.8321,2459.0,2458.0,11.61632188]
[1750932269106,0.8321,2459.0,2458.7,4.06713768]
[1750932269292,0.8321,2459.0,2458.8,4.06699265]
[1750932269494,0.8321,2459.0,2458.9,4.06685916]
[1750932269810,0.95866034,2459.4,2459.1,4.06640477]
[1750932270107,0.95866034,2459.6,2458.9,4.06677991]
[1750932270273,1.88404779,2459.5,2459.0,4.06667453]
[1750932270600,1.88404779,2459.5,2458.9,4.06679306]
[1750932270798,0.55,2459.4,2458.9,4.06674882]
[1750932271010,2.84270813,2459.5,2458.9,4.06674882]
[1750932271200,62.58954876,2460.0,2458.5,0.7927]
[1750932271201,0.2032,2459.3,2458.8,4.2701385]
[1750932271397,0.2032,2459.3,2459.2,4.06634771]
[1750932272322,0.8428,2459.6,2459.3,4.06611075]
[1750932272613,0.2032,2459.5,2459.4,4.06603236]
[1750932272973,0.8451,2459.9,2459.7,4.06553006]
[1750932273191,52.82554876,2460.0,2459.9,4.0652059]
[1750932274300,52.82554876,2460.0,2459.6,4.06554278]
[1750932274500,0.2032,2459.8,2459.3,4.0660848]
[1750932274708,1.3967,2459.5,2458.7,10.0]
[1750932274887,0.2032,2459.4,2459.1,4.06638304]
[1750932275276,0.2032,2459.4,2459.2,4.06630025]
[1750932275472,18.066,2459.9,2459.4,4.06603236]
[1750932275677,14.83002424,2459.9,2459.7,4.06552021]
[1750932275902,0.55,2459.8,2459.4,0.2032]
[1750932276102,0.2032,2459.6,2459.1,0.2032]
[1750932276303,0.2032,2459.4,2459.1,4.0664146]
[1750932276818,0.55,2459.3,2459.0,4.06661749]
[1750932277011,0.2032,2459.2,2458.9,4.06677102]
[1750932277191,0.2032,2459.2,2459.0,4.06668268]
[1750932277388,0.2032,2459.2,2458.9,4.06680291]
[1750932277589,0.8482,2459.1,2458.7,0.2032]
[1750932277790,0.8482,2459.1,2458.5,4.06746242]
[1750932278008,0.2032,2458.9,2458.6,4.0673554]
[1750932278421,0.2032,2458.9,2458.5,4.27063408]
[1750932278624,0.2032,2458.9,2458.8,4.06702456]
[1750932279137,0.2032,2459.1,2459.0,4.06669377]
[1750932279914,0.7818,2459.4,2459.1,4.06646644]
[1750932280119,0.2032,2459.2,2459.1,4.06646644]
[1750932280722,10.8046,2459.9,2459.5,4.06585322]
[1750932280894,0.47806809,2459.8,2459.2,4.06634019]
[1750932281094,0.47806809,2459.8,2459.6,4.06563126]
[1750932281415,0.47806809,2459.8,2459.6,4.06561962]
[1750932281597,0.47806809,2459.8,2459.4,4.26917931]
[1750932281802,0.2032,2459.6,2459.4,4.06595718]
[1750932282197,0.2032,2459.6,2459.5,4.06586704]
[1750932282398,0.27486809,2459.8,2459.7,4.06553644]
[1750932282726,0.47806809,2459.8,2459.7,4.06553644]
[1750932283102,0.55,2459.7,2459.4,0.2032]
[1750932283306,0.55,2459.7,2459.3,4.06610988]
[1750932283524,0.55,2459.7,2458.9,6.32081177]
[1750932283525,0.27486809,2459.8,2459.7,4.06553644]
[1750932283738,0.27486809,2459.8,2459.4,0.2032]
[1750932284037,10.2032,2459.9,2459.5,4.06570963]
[1750932284339,10.2032,2459.9,2459.4,4.26917044]
[1750932284340,10.2032,2459.9,2459.6,4.06563974]
[1750932284554,10.2032,2459.9,2459.5,4.0657846]
[1750932284841,10.2032,2459.9,2459.6,4.0656442]
[1750932285053,10.2032,2459.9,2459.6,4.0643442]
[1750932285539,10.2032,2459.9,2459.5,4.06581338]
[1750932285916,10.2032,2459.9,2459.4,4.26914189]
[1750932286112,10.2032,2459.9,2459.5,4.06585684]
[1750932286444,0.55,2459.8,2459.4,0.2032]
[1750932286658,0.2032,2459.7,2459.3,4.06617971]
[1750932286944,0.2032,2459.7,2459.4,4.06602063]
[1750932287144,0.2032,2459.7,2459.4,4.06587485]
[1750932287459,0.2032,2459.7,2459.3,4.06609614]
[1750932287948,1.67985242,2459.7,2459.2,4.26949751]
[1750932288253,1.3384,2459.6,2458.9,6.3197572]
[1750932288414,0.2032,2459.4,2458.9,4.2699925]
[1750932288613,0.2032,2459.4,2459.0,4.06667567]
[1750932288939,0.2032,2459.4,2458.9,4.26998418]
[1750932289142,0.2032,2459.4,2458.9,0.2032]
[1750932289353,0.2032,2459.1,2458.8,4.06700069]
[1750932290006,0.2032,2459.1,2459.0,4.06669377]
[1750932290208,0.2032,2459.5,2459.2,4.06624992]
[1750932290418,0.2032,2459.5,2459.1,4.06638846]
[1750932290847,0.2032,2459.5,2459.2,4.06634884]
[1750932291418,0.2032,2459.5,2459.4,4.06603236]
[1750932291614,0.2032,2459.9,2459.6,4.06570097]
[1750932291832,10.2032,2459.9,2459.6,4.06570097]
[1750932292036,10.2032,2459.9,2459.7,4.0655136]
[1750932292350,52.82554876,2460.0,2459.8,4.06537116]
[1750932292518,10.0,2459.9,2459.8,4.06537116]
[1750932292725,52.82554876,2460.0,2459.8,4.06537116]
[1750932293535,10.0,2459.9,2459.6,4.26877973]
[1750932293757,10.0,2459.9,2459.8,4.06537116]
[1750932294050,10.0,2459.9,2459.6,0.2032]
[1750932294256,10.0,2459.9,2459.6,4.26883654]
[1750932294566,10.0,2459.9,2459.7,4.06545742]
[1750932294734,10.0,2459.9,2459.7,4.06541322]
[1750932295067,10.0,2459.9,2459.6,0.2032]
[1750932295266,10.0,2459.9,2459.6,4.26883048]
[1750932295961,10.0,2459.9,2459.8,4.06537116]
[1750932296852,10.0,2459.9,2459.6,4.06559558]
[1750932296853,10.0,2459.9,2459.5,4.06578852]
[1750932297019,10.0,2459.9,2459.6,4.06559403]
[1750932297422,9.99893911,2459.9,2459.5,4.26900632]
[1750932297651,9.99681653,2459.9,2459.6,4.06559403]
[1750932298190,9.99681653,2459.9,2459.7,4.06552603]
[1750932298466,10.95733689,2459.9,2459.6,4.06558734]
[1750932298658,10.95733689,2459.9,2459.6,4.06570174]
[1750932298855,9.99681653,2459.9,2459.8,4.06537116]
[1750932299044,9.99681653,2459.9,2459.7,4.06545658]
[1750932299369,9.99681653,2459.9,2459.8,4.06537116]
[1750932299974,9.99575484,2459.9,2459.8,4.06537116]
[1750932300155,9.99575484,2459.9,2459.7,4.06546358]
[1750932300533,10.95663116,2459.9,2459.6,4.06562615]
[1750932300737,9.99575484,2459.9,2459.6,4.06555873]
[1750932301080,9.99575484,2459.9,2459.7,4.0654644]
[1750932301240,9.99575484,2459.9,2459.8,4.06537116]
[1750932302150,52.82554876,2460.0,2459.8,4.06537116]
[1750932302151,52.82554876,2460.0,2459.9,4.0652059]
[1750932302350,62.82554876,2460.0,2459.9,4.0652059]
[1750932302575,52.82554876,2460.0,2459.9,4.0652059]
[1750932302872,52.82554876,2460.0,2459.9,4.2684059]
[1750932303368,52.82554876,2460.0,2459.9,7.2133059]
[1750932304390,52.82554876,2460.0,2459.9,47.2133059]
[1750932304533,52.82554876,2460.0,2459.9,47.7633059]
[1750932304534,52.35172353,2460.0,2459.9,47.7633059]
[1750932304738,44.35192353,2460.0,2459.9,47.96433345]
[1750932305047,35.46400404,2460.0,2459.9,51.4151059]
[1750932305369,31.31440404,2460.0,2459.9,44.9681059]
[1750932305705,31.31440404,2460.0,2459.9,54.4801059]
[1750932305971,31.31440404,2460.0,2459.9,54.4791059]
[1750932306970,30.80440404,2460.0,2459.9,54.4791059]
[1750932307135,30.43340404,2460.0,2459.9,58.7571059]
[1750932307331,30.31140404,2460.0,2459.9,58.7571059]
[1750932307571,29.77140404,2460.0,2459.9,58.7571059]
[1750932308073,29.77140404,2460.0,2459.9,54.4791059]
[1750932308291,29.77140404,2460.0,2459.9,54.78378977]
[1750932308702,28.59140404,2460.0,2459.9,54.78378977]
[1750932308900,28.21627961,2460.0,2459.9,58.78378977]
[1750932309083,27.732083,2460.0,2459.9,59.3686284]
[1750932309277,24.56126328,2460.0,2459.9,59.3686284]
[1750932309487,7.71602654,2460.0,2459.9,63.6466284]
[1750932309686,4.14388094,2460.0,2459.9,63.6466284]
[1750932309861,2.75414894,2460.0,2459.9,63.6466284]
[1750932310190,0.13575244,2460.0,2459.9,63.6466284]
[1750932310766,0.13575244,2460.0,2459.9,63.06178977]
[1750932311299,0.2192033,2461.8,2461.7,4.06223341]
[1750932311476,0.2192033,2461.8,2461.7,14.12676491]
[1750932314987,0.2192033,2461.8,2461.7,24.12676491]
[1750932315192,0.2192033,2461.8,2461.7,41.64429591]
[1750932315704,0.2192033,2461.8,2461.7,28.78749991]
[1750932315874,0.2192033,2461.8,2461.7,27.29446491]
[1750932316597,0.2192033,2461.8,2461.7,24.10576491]
[1750932316778,0.2192033,2461.8,2461.7,35.22494791]
[1750932317389,0.2192033,2461.8,2461.7,35.77494791]
[1750932317775,0.2192033,2461.8,2461.7,54.65576491]
[1750932318612,0.2192033,2461.8,2461.7,54.63776491]
[1750932320373,0.2192033,2461.8,2461.7,54.63574922]
[1750932321310,0.2192033,2461.8,2461.7,54.43334922]
[1750932321510,0.837,2463.3,2463.2,4.05975966]
[1750932321711,0.837,2463.3,2463.2,11.32975966]
[1750932322377,0.837,2463.3,2463.2,4.05975966]
[1750932322579,0.837,2463.3,2463.2,7.272]
[1750932322908,0.837,2463.3,2463.2,11.33175966]
[1750932323525,10.0,2464.2,2463.7,4.05877823]
[1750932323702,11.82250208,2464.2,2463.8,4.05875353]
[1750932324024,0.7762,2464.1,2463.6,4.05906072]
[1750932324604,0.8535,2463.9,2463.5,7.271]
[1750932325229,0.8535,2463.6,2463.4,7.265]
[1750932325813,0.8535,2463.6,2463.1,4.05978289]
[1750932325997,0.8535,2463.6,2463.2,7.259]
[1750932327128,0.8535,2463.6,2463.3,4.05946563]
[1750932327291,0.8535,2463.6,2463.2,7.259]
[1750932327831,0.8535,2463.6,2463.4,4.05935226]
[1750932328034,0.8535,2463.6,2463.2,11.31868687]
[1750932328242,0.8535,2463.6,2463.2,11.31868627]
[1750932328445,0.8535,2463.6,2463.5,4.05926527]